Cogmind - Beta 10.2 @@@ ROGUE MODE // 2022.01.06 @ 21:23:45 Player: Halfie Result: Destroyed by Y-45 Defender with Heavy Assault Rifle Performance ------------- Evolutions (1) 500 Regions Visited (3) 600 Robots Destroyed (27) 135 Value Destroyed (457) 457 Prototype IDs (1) 20 Alien Tech Used (0) 0 Bonus (0) 0 TOTAL SCORE: 1712 Bonus ------- None Cogmind --------- Core Integrity 0/400 Matter 161/300 Energy 335/400 System Corruption 1% Temperature Cool (11) Movement Flying (34) Location -9/Storage Parts ------- > --- POWER (3) -------- (None) > --- PROPULSION (2) --- Flight Unit Cooled VTOL Module > --- UTILITY (2) ------ Large Battery Terrain Scan Processor > --- WEAPON (2) ------- Hammer > --- INVENTORY (4) ---- Signal Interpreter Peak State ------------ > --- POWER ------------ Light Ion Engine Improved Ion Engine Improved Ion Engine > --- PROPULSION ------- Wheel > --- UTILITY ---------- Large Battery > --- WEAPON ----------- Spread Laser Spread Laser > --- INVENTORY -------- Flight Unit Heavy Assault Rifle Shotgun [Rating: 11] Favorites ----------- Power Light Ion Engine Engine Light Ion Engine Propulsion Light Treads Treads Light Treads Leg Aluminum Leg Wheel Wheel Hover Unit Improved Hover Unit Flight Unit Cooled VTOL Module Utility Large Battery Storage Large Battery Processor Terrain Scan Processor Protection Utility Shielding Weapon Grenade Launcher Energy Gun Medium Laser Ballistic Gun Shotgun Launcher Grenade Launcher Impact Weapon Hammer Build | -11 -10 -9 -9 ------- Run | Scr Mat Mat Sto Slots Evolved 2 | . . 2 . Power 2 | . . 2 . Propulsion . | . . . . Utility . | . . . . Weapon . | . . . . Parts Attached 31 | 7 7 8 9 Power 5 | 1 . 4 . Engine 5 | 1 . 4 . Core . | . . . . Reactor . | . . . . Propulsion 13 | 4 2 3 4 Treads 2 | . 2 . . Leg 2 | 2 . . . Wheel 4 | 2 . 2 . Hover 1 | . . 1 . Flight 4 | . . . 4 Utility 3 | . 2 . 1 Device . | . . . . Storage 1 | . 1 . . Processor 1 | . . . 1 Hackware . | . . . . Protection 1 | . 1 . . Artifact . | . . . . Weapon 10 | 2 3 1 4 Energy Gun 3 | 1 . . 2 Energy Cannon . | . . . . Ballistic Gun 3 | 1 . 1 1 Ballistic Cannon . | . . . . Launcher 3 | . 3 . . Special Weapon . | . . . . Impact Weapon 1 | . . . 1 Slashing Weapon . | . . . . Piercing Weapon . | . . . . Special Melee Weapon . | . . . . Unidentified Prototypes 1 | . . . 1 Parts Lost 7 | . . . 7 Power 3 | . . . 3 Propulsion 2 | . . . 2 Utility . | . . . . Weapon 2 | . . . 2 Highest Loss Streak 6 | . . . 6 Average Slot Usage (%) 77 | . 92 70 56 Engine 17 | . 14 18 21 Treads 8 | . 11 12 . Leg 7 | . 16 . . Wheel 2 | . . 1 10 Hover 1 | . . 4 . Storage 10 | . 10 11 11 Protection 7 | . 10 6 . Energy Gun 1 | . . . 3 Ballistic Gun 5 | . 2 9 5 Launcher 13 | . 24 7 . Naked Turns . | . . . . Heaviest Build 26 | 7 13 23 26 Greatest Support 40 | 3 40 40 20 Greatest Overweight (x) 5 | 2 4 2 5 Average Overweight (x) . | 1 1 . . Largest Inventory Capacity 4 | 4 4 4 4 Average Capacity 4 | 4 4 4 4 Most Carried 4 | 3 2 3 4 Average Carried . | . . . 1 Final Capacity 4 | 4 4 4 4 Final Carried 1 | . . . 1 Class Distribution -------------------- 100% | Mutant Dominant Class ---------------- Mutant | -10/Materials Mutant | -9/Materials Mutant | -9/Storage Resources | -11 -10 -9 -9 ----------- Run | Scr Mat Mat Sto Matter Collected 697 | 318 150 103 126 Remotely . | . . . . Salvage Created 569 | 112 199 70 188 Parts 55 | 7 14 12 22 Haulers Intercepted . | . . . . Recyclers Shooed 5 | . . 3 2 Parts Field Recycled . | . . . . Retrieved Matter . | . . . . Parts Self-Destructed . | . . . . Prevented . | . . . . Kills | -11 -10 -9 -9 ------- Run | Scr Mat Mat Sto Combat Hostiles Destroyed 13 | 1 6 . 6 Guns 7 | 1 . . 6 AOE 6 | . 6 . . Classes Destroyed 9 | 3 5 . 1 Worker 3 | 1 . 2 . Builder 4 | . 1 2 1 Tunneler 3 | 2 . 1 . Recycler 1 | . 1 . . Operator 1 | . 1 . . Watcher 2 | . 1 . 1 Swarmer 5 | . 2 . 3 Grunt 7 | 1 4 . 2 Sentry 1 | . . . 1 Best Kill Streak 4 | 4 3 4 2 Combat Bots Only 2 | 1 2 . 2 Max Kills in Single Turn 2 | 1 2 2 1 Gunslinging . | . . . . Exploded 2 | . 2 . . Melee . | . . . . Uniques/NPCs Destroyed . | . . . . Combat | -11 -10 -9 -9 -------- Run | Scr Mat Mat Sto Damage Taken 978 | 57 198 . 723 Core 436 | 22 12 . 402 Absorbed by Shields . | . . . . Core Remaining (%) 88 | 91 86 . . Volleys Fired 74 | 16 15 15 28 Largest 2 | 1 2 1 2 Hottest 130 | 20 60 23 130 Shots Fired 92 | 16 23 15 38 Gun 71 | 16 2 15 38 Cannon . | . . . . Launcher 21 | . 21 . . Special . | . . . . Kinetic 50 | 16 2 15 17 Thermal 21 | . . . 21 Explosive 21 | . 21 . . Electromagnetic . | . . . . Robot Hit Streak 5 | 3 4 3 5 Robot Miss Streak 9 | 1 2 4 9 Penetration Max . | . . . . Secondary Targets . | . . . . Shots Hit Robots 60 | 12 5 12 31 Core Hits 55 | 5 17 9 24 Critical Hits 1 | . . 1 . Critical Kills 1 | . . 1 . Critical Parts Destroyed . | . . . . Melee Attacks . | . . . . Impact . | . . . . Slashing . | . . . . Piercing . | . . . . Sneak Attacks . | . . . . Combat Hostiles . | . . . . Follow-up Attacks . | . . . . Damage Inflicted 1388 | 156 737 166 329 Guns 612 | 156 . 166 290 Cannons . | . . . . Explosions 734 | . 734 . . Melee . | . . . . Ramming 42 | . 3 . 39 Kinetic 481 | 156 . 166 159 Thermal 131 | . . . 131 Explosive 734 | . 734 . . Electromagnetic . | . . . . Impact . | . . . . Slashing . | . . . . Piercing . | . . . . Highest Corruption 1 | . . . 1 Average Corruption 1 | . . . 1 Corruption Purged . | . . . . Overload Shots . | . . . . Overflow Damage 18 | . 18 . . Projectiles . | . . . . Explosions 18 | . 18 . . Melee . | . . . . Knockbacks . | . . . . Impact . | . . . . Kinetic . | . . . . Secondary . | . . . . Self-Inflicted Damage 58 | . 40 . 18 Shots 2 | . 2 . . Rammed 12 | . 1 . 11 Targets Rammed 12 | . 1 . 11 Kicked . | . . . . Crushed . | . . . . Highest Temperature 618 | . . 4 618 Average Temperature 224 | . . 2 248 Received Heat Transfer 240 | 30 24 . 186 Effects 11 | . . . 11 Shutdowns 4 | . . . 4 Short Circuit 1 | . . . 1 Damage (major) 4 | . . . 4 Damage (core) 2 | . . . 2 Siege Activations . | . . . . Robots Corrupted . | . . . . Combat Hostiles . | . . . . Parts Fried . | . . . . Impact Corruptions . | . . . . Robots Melted . | . . . . Combat Hostiles . | . . . . Parts Melted 1 | . . . 1 Heat Transferred 165 | . . . 165 Parts Sabotaged . | . . . . Parts Stolen . | . . . . Parts Stripped . | . . . . Power Chain Reactions . | . . . . Missiles Intercepted . | . . . . Alert | -11 -10 -9 -9 ------- Run | Scr Mat Mat Sto Peak Influence 205 | 35 177 79 205 Initial 74 | . 22 74 8 Average 66 | 6 66 58 108 Maximum Alert Level 1 | . . . 1 Low Security (%) 99 | 100 100 100 99 Level 1 . | . . . . Level 2 . | . . . . Level 3 . | . . . . Level 4 . | . . . . Level 5 . | . . . . High Security . | . . . . Max Security . | . . . . Squads Dispatched 3 | . 1 1 1 Investigation 1 | . . 1 . Extermination . | . . . . Reinforcement 2 | . 1 . 1 Assault . | . . . . Garrison . | . . . . Intercept . | . . . . Construction Impeded . | . . . . Haulers Reinforced . | . . . . Stealth | -11 -10 -9 -9 --------- Run | Scr Mat Mat Sto Distress Signals 5 | . 2 . 3 Communications Jammed . | . . . . Distress Signals . | . . . . Times Spotted 31 | 1 13 . 17 Peak Tracking Total 5 | 1 5 . 5 Tactical Retreats 5 | . 3 . 2 Traps | -11 -10 -9 -9 ------- Run | Scr Mat Mat Sto Traps Triggered 3 | . . 1 2 Indirectly . | . . . . Trap Hack Attempts . | . . . . Triggered . | . . . . Disarmed . | . . . . Reprogrammed . | . . . . Reused . | . . . . Traps Extracted . | . . . . Installed . | . . . . Triggered . | . . . . Machines | -11 -10 -9 -9 ---------- Run | Scr Mat Mat Sto Machines Disabled . | . . . . Max in Single Turn . | . . . . Machines Sabotaged . | . . . . Garrisons Compromised . | . . . . Overloaded Fab Kills . | . . . . Fab Network Shutdowns . | . . . . Hacking | -11 -10 -9 -9 --------- Run | Scr Mat Mat Sto Machines Accessed 5 | . 2 2 1 Terminals 2 | . . 1 1 Fabricators . | . . . . Repair Stations 1 | . 1 . . Recycling Units 2 | . 1 1 . Scanalyzers . | . . . . Garrison Access . | . . . . Total Hacks 14 | . 4 8 2 Successful 10 | . 3 5 2 Failed 4 | . 1 3 . Catastrophic . | . . . . Database Lockouts . | . . . . Manual 7 | . . 7 . Terminals 8 | . . 6 2 Fabricators . | . . . . Repair Stations 3 | . 3 . . Recycling Units 3 | . 1 2 . Scanalyzers . | . . . . Garrison Access . | . . . . Terminal Hacks 5 | . . 3 2 Record 4 | . . 3 1 Alert Level 1 | . . . 1 Fabricator Hacks . | . . . . Repair Station Hacks 2 | . 2 . . Scan Component 1 | . 1 . . Repair 1 | . 1 . . Recycling Unit Hacks 3 | . 1 2 . Report Inventory 2 | . 1 1 . Retrieve Components 1 | . . 1 . Scanalyzer . | . . . . Garrison Access Hacks . | . . . . Unauthorized Hacks . | . . . . Terminals . | . . . . Fabricators . | . . . . Repair Stations . | . . . . Recycling Units . | . . . . Scanalyzers . | . . . . Garrison Access . | . . . . Data Cores Recovered . | . . . . Used . | . . . . Hacking Detections 3 | . 1 1 1 Full Trace Events 1 | . 1 . . Feedback Events . | . . . . Feedback Blocked . | . . . . Robot Schematics Acquired . | . . . . Robots Built . | . . . . Matter . | . . . . Time . | . . . . Total Robot Build Rating . | . . . . Part Schematics Acquired . | . . . . Parts Built . | . . . . Matter . | . . . . Time . | . . . . Total Part Build Rating . | . . . . Parts Repaired 1 | . 1 . . Time 26 | . 26 . . Parts Recycled . | . . . . Recycled Matter . | . . . . Retrieved Matter . | . . . . Retrieved Components 2 | . . 2 . Parts Scanalyzed . | . . . . Part Schematics Acquired . | . . . . Parts Damaged . | . . . . Bothacking | -11 -10 -9 -9 ------------ Run | Scr Mat Mat Sto Used RIF Installer . | . . . . Robots Hacked . | . . . . Non-combat . | . . . . Combat . | . . . . Robot Hacks Applied . | . . . . Relay Couplers Released . | . . . . Robots Rewired . | . . . . Allies Hacked . | . . . . Hacks Repelled . | . . . . Allies | -11 -10 -9 -9 -------- Run | Scr Mat Mat Sto Total Allies . | . . . . Largest Group . | . . . . Highest-Rated Group . | . . . . Highest-Rated Ally . | . . . . Total Orders . | . . . . Ally Attacks . | . . . . Total Damage . | . . . . Kills . | . . . . Allies Corrupted . | . . . . Allies Melted . | . . . . Intel | -11 -10 -9 -9 ------- Run | Scr Mat Mat Sto Robot Analysis Total . | . . . . Derelict Logs Recovered . | . . . . Drone Launches . | . . . . Drone Recoveries . | . . . . Exploration | -11 -10 -9 -9 ------------- Run | Scr Mat Mat Sto Turns Passed 1835 | 167 759 545 364 Spaces Moved 1108 | 110 352 321 325 Core 462 | 110 178 . 174 Treads 354 | . 174 180 . Legs . | . . . . Wheels 154 | . . 13 141 Hover 128 | . . 128 . Flight 10 | . . . 10 Fastest Speed 34 | 50 150 90 34 Average Speed 131 | 109 177 151 71 Slowest Speed 300 | 150 250 180 300 Overloaded Moves . | . . . . Propulsion Burnouts . | . . . . Robots Hopped . | . . . . Cave-ins Triggered . | . . . . Exploration Rate (%) 29 | 5 49 21 41 Regions Visited 3 Branch Regions 1 Pre-discovered Areas . | . . . . Known Exits Taken . | . . . . Unknown Exits Taken 3 | 1 1 1 . Scrap Searched . | . . . . Spaces Dug 8 | . 8 . . Terrain Destroyed 113 | . 113 . . Melee . | . . . . Projectile . | . . . . AOE 113 | . 113 . . Terrain Rammed . | . . . . Walls Destroyed . | . . . . Machines Disabled . | . . . . Actions | -11 -10 -9 -9 --------- Run | Scr Mat Mat Sto Total 1392 | 141 464 369 418 Wait 117 | . 78 5 34 Move 1105 | 109 351 320 325 Hop . | . . . . Pick Up 31 | 7 6 9 9 Fast Attach 1 | . 1 . . Attach 18 | 5 4 3 6 Detach 5 | . 2 3 . Swap 12 | 2 2 5 3 Drop 17 | 2 4 9 2 Fire 74 | 16 15 15 28 Melee . | . . . . Ram 11 | . . . 11 Kick . | . . . . Crush 1 | . 1 . . Escape Stasis . | . . . . Rewire . | . . . . Trap . | . . . . Miscellaneous . | . . . . Route ------- -11/Scrapyard -10/Materials (discovered 2 exits: *Mat / [*Min]) -9/Materials -9/Storage History --------- Turn | Location | Event 2 | -11/Scrapyard | Met Revision 17 115 | -11/Scrapyard | Discovered new exit (range 8) 168 | -11/Scrapyard | Entered Materials 302 | -10/Materials | Build established: Mutant 486 | -10/Materials | Repaired Grenade Launcher 773 | -10/Materials | Discovered new exit (range 7) 902 | -10/Materials | Discovered new exit (range 15) 927 | -10/Materials | Entered another Materials area 927 | -9/Materials | Evolved 2 slots: Power x2 1030 | -9/Materials | Discovered new exit (range 10) 1472 | -9/Materials | Entered Storage 1711 | -9/Storage | Core integrity fell below 50% 1754 | -9/Storage | Lost 6 parts (3p1n2w) 1805 | -9/Storage | Core integrity fell below 20% 1836 | -9/Storage | Destroyed by Y-45 Defender with Heavy Assault Rifle Last Messages --------------- Slammed into W-16 Scout. W-16 Scout destroyed. [Achievement: Fist Fight] Acquired 30 matter. Acquired Signal Interpreter. K-01 Serf collects debris. Slammed into R-06 Scavenger. [Achievement: Hey, That's Mine!] Triggered Blade Trap. Massive razor-sharp blades shoot up from within the floor. Cld. VTOL Module severed. Flying robots can pass through spaces occupied by others, even hostile robots. The Cld. VTOL Module is "overloadable", activating it again increases its output for additional resource costs, and may damage the unit. The Terrain Scan Processor is a processor, a type of utility that is destroyed if removed (these are marked with a colon in the parts list, as a reminder). Acquired Hammer. [Achievement: First Step to Greatness] Map ----- +----------------------------------------------------+ | ?????????????????????????????????????????????????? | | ?????????????????????????????????????????????????? | | ?????????????????????????????????????????????????? | | ?????????????????????????????????????????????????? | | ?????????????????????????????????????????????????? | | ?????????????????????????????????????????????????? | | ?????????????????????????????????????????????????? | | ?????????????????????????????????????????????????? | | ?????????????????????????????????????????????????? | | ?????????????????????????????????????????????????? | | ?????????????????????????????????????????????????? | | ?????????????????????????????????????????????????# | | ?????????????????????????????????????????????????# | | ??????????????????????????????# ############### | | ??????????????????????????????# /=! ! | | ??????????????????????????????# ########## #### | | ????????????????????????????????????????????# #??? | | ????????????????????????????????????????????# #??? | | ????????????????????????????????????????????# #??? | | ?????????????????????###############????????# #??? | | ?????????????????????# #????????# #??? | | ?????????????????????# #????????# #??? | | ?????????????????????# #????????# #??? | | ?????????????????????# /// #?########+#??? | | ????????????????????## r/// #?# #??? | | ????????????????????#Y @ // #?# #??? | | ??????????????????#######/############ """" #??? | | ??????????? = # "??" #??? | | ??????????? + "??" #??? | | ??????????? # "??" #??? | | ????????????#################### # "??" #??? | | ???????????????????????????????# # """" #??? | | ???????????????????????????????# # #??? | | ???????????????????????????????# ##########??? | | ???????????????????????????????# #?????????### | | ?????????????????????#?????????# #?????????#= | | ???????????????????? #?????????# #?????????#= | | ??????????????????"" ?????????? #?????????#== | | ?????????????????? ?????????? #?????????### | | ????????????????? ?????????? ???????????? | | ?????###+########/#?????????? ???????????? | | ?????# *#????????? ? ???????????? | | ?????# |#??????""" ?? ##?????????? | | ?"" / #######/####?????""" ???????? #??######## | | ? ??????# #?????""" ???????# #??# | | ?????????# [[ #### #??????# #??# """" | | ?????????# [ + #??????# #??# "??"" | | ?????????# ####### #??????# #??# "???"" | | ?????????# ""#?????# ##+######## #??# ""???" | | ?????????# Y"#?????# # + #??# ""??" | +----------------------------------------------------+ Best States ------------- Heat Dissipation 28 Energy Generation 24 Energy Capacity 755 Matter Stores 300 Matter Capacity 300 Sight Range 16 Terrain Scan Density 10 Utility Shielding 33 Evasion (%) 63 Recoil Reduction 2 Item Schematics ----------------- None Robot Schematics ------------------ None Fabricated ------------ Nothing Alien Tech Used ----------------- None Achievements -------------- First Step to Greatness Fist Fight Hey, That's Mine! Part-time Mechanic Risk Taker Storm Trooper Uninvited Guest Challenges ------------ None Game ------ Seed HelicalCoreCleaver Manual? 0 Play Time 00:34:22 Cumulative 1.1 hours Start 2022.01.06 @ 20:48:23 End 2022.01.06 @ 21:23:45 Sessions 1 Manual Loads 0 Difficulty Rogue Special Mode None Game No. 1 Rogue 1 Adventurer 0 Explorer 0 Win Type - Total 0 Types 0/0/0/0/0/0/0/0/0 Lore% 0 Gallery% 1 Achievement% 2 Wizard Run 0 Options --------- ASCII 0 Keyboard 1 Movement Numpad Keybinds 0 Fullscreen 1 Font 18/SmallcapsGlow Map View 76x50 Tactical HUD 0 Map Filters NONE Filters NONE Steam 1 RUN: 57ceb12d-2df1-4762-b2f5-228e459d0f41